fUSD/lending_fUSD_20240730
["ID","MTS","AMOUNT","RATE_DAILY","PERIOD"]
[333655620,1722310246138,-500.0,0.00010958,2]
[333655621,1722310246147,-500.0,0.00010958,2]
[333655622,1722310246157,-500.0,0.00010958,2]
[333655623,1722310246166,-500.0,0.00010958,2]
[333655624,1722310246177,-525.99808718,0.00010958,2]
[333655625,1722310246186,-500.0,0.00010958,2]
[333655626,1722310246195,-500.0,0.00010958,2]
[333655627,1722310246204,-500.0,0.00010958,2]
[333655628,1722310246214,-500.0,0.00010958,2]
[333655629,1722310246223,-500.0,0.00010958,2]
[333655630,1722310246233,-500.0,0.00010958,2]
[333655631,1722310246242,-500.0,0.00010958,2]
[333655632,1722310246252,-500.0,0.00010958,2]
[333655633,1722310246261,-500.0,0.00010958,2]
[333655634,1722310246271,-500.0,0.00010958,2]
[333655635,1722310246280,-500.0,0.00010958,2]
[333655636,1722310246289,-500.0,0.00010958,2]
[333655637,1722310246298,-500.0,0.00010958,2]
[333655638,1722310246308,-500.0,0.00010958,2]
[333655639,1722310246317,-500.0,0.00010958,2]
[333655640,1722310246327,-500.0,0.00010958,2]
[333655641,1722310246336,-500.0,0.00010958,2]
[333655642,1722310246345,-500.0,0.00010958,2]
[333655643,1722310246355,-500.0,0.00010958,2]
[333655644,1722310246364,-500.0,0.00010958,2]
[333655645,1722310246374,-500.0,0.00010958,2]
[333655646,1722310246384,-500.0,0.00010958,2]
[333655647,1722310246393,-500.0,0.00010958,2]
[333655648,1722310246403,-500.0,0.00010958,2]
[333655649,1722310246413,-500.0,0.00010958,2]
[333655650,1722310246425,-250.55379222,0.00010958,2]
[333655651,1722310246435,-500.0,0.00010958,2]
[333655652,1722310246445,-500.0,0.00010958,2]
[333655653,1722310246454,-519.14,0.00010958,2]
[333655654,1722310246464,-500.0,0.00010958,2]
[333655655,1722310246474,-500.0,0.00010958,2]
[333655656,1722310246483,-538.06634614,0.00010958,2]
[333655657,1722310246493,-500.0,0.00010958,2]
[333655658,1722310246502,-500.0,0.00010958,2]
[333655659,1722310246512,-500.0,0.00010958,2]
[333655660,1722310246521,-500.0,0.00010958,2]
[333655661,1722310246530,-500.0,0.00010958,2]
[333655662,1722310246539,-500.0,0.00010958,2]
[333655663,1722310246549,-500.0,0.00010958,2]
[333655664,1722310246559,-500.0,0.00010958,2]
[333655665,1722310246568,-500.0,0.00010958,2]
[333655666,1722310246577,-500.0,0.00010958,2]
[333655667,1722310246587,-500.0,0.00010958,2]
[333655668,1722310246596,-500.0,0.00010958,2]
[333655669,1722310246605,-500.0,0.00010958,2]
[333655670,1722310246614,-500.0,0.00010958,2]
[333655671,1722310246623,-500.0,0.00010958,2]
[333655672,1722310246632,-500.0,0.00010958,2]
[333655673,1722310246642,-500.0,0.00010958,2]
[333655674,1722310246651,-500.0,0.00010958,2]
[333655675,1722310246663,-506.24554112,0.00010958,2]
[333655676,1722310246675,-500.0,0.00010958,2]
[333655677,1722310246684,-500.0,0.00010958,2]
[333655678,1722310246694,-500.0,0.00010958,2]
[333655679,1722310246703,-508.49128739,0.00010958,2]
[333655680,1722310246712,-500.0,0.00010958,2]
[333655681,1722310246721,-190.29012557,0.00010958,2]
[333655682,1722310246734,-309.70987443,0.00010958,2]
[333655683,1722310246745,-391.17537219,0.00010958,2]
[333655684,1722310246754,-500.0,0.00010958,2]
[333655685,1722310246764,-500.0,0.00010958,2]
[333655686,1722310246773,-500.0,0.00010958,2]
[333655687,1722310246782,-500.0,0.00010958,2]
[333655688,1722310246792,-500.0,0.00010958,2]
[333655689,1722310246802,-500.0,0.00010958,2]
[333655690,1722310246810,-500.0,0.00010958,2]
[333655691,1722310246820,-500.0,0.00010958,2]
[333655692,1722310246829,-500.0,0.00010958,2]
[333655693,1722310246838,-500.0,0.00010958,2]
[333655694,1722310246847,-500.0,0.00010958,2]
[333655695,1722310246857,-500.0,0.00010958,2]
[333655696,1722310246867,-500.0,0.00010958,2]
[333655697,1722310246876,-500.0,0.00010958,2]
[333655698,1722310246885,-500.0,0.00010958,2]
[333655699,1722310246895,-500.0,0.00010958,2]
[333655700,1722310246904,-92.00807917,0.00010958,2]
[333655701,1722310246919,-353.504,0.00010958,2]
[333655702,1722310246940,-54.48792083,0.00010958,2]
[333655703,1722310246950,-227.33918372,0.00010958,2]
[333655704,1722310246959,-500.0,0.00010958,2]
[333655705,1722310246968,-361.24623665,0.00010958,2]
[333655706,1722310246979,-138.75376335,0.00010958,2]
[333655707,1722310246988,-304.07020639,0.00010958,2]
[333655708,1722310246999,-195.92979361,0.00010958,2]
[333655709,1722310247008,-426.7165852,0.00010958,2]
[333655710,1722310247019,-73.2834148,0.00010958,2]
[333655711,1722310247028,-500.0,0.00010958,2]
[333655712,1722310247038,-500.0,0.00010958,2]
[333655713,1722310247047,-500.0,0.00010958,2]
[333655714,1722310247055,-264.28605446,0.00010958,2]
[333655715,1722310247067,-235.71394554,0.00010958,2]
[333655716,1722310247076,-500.0,0.00010958,2]
[333655717,1722310247085,-500.0,0.00010958,2]
[333655718,1722310247094,-500.0,0.00010958,2]
[333655719,1722310247103,-500.0,0.00010958,2]
[333655720,1722310247113,-233.71331701,0.00010958,2]
[333655721,1722310247123,-500.0,0.00010958,2]
[333655722,1722310247132,-500.0,0.00010958,2]
[333655723,1722310247141,-500.0,0.00010958,2]
[333655724,1722310247151,-500.0,0.00010958,2]
[333655725,1722310247160,-500.0,0.00010958,2]
[333655726,1722310247169,-500.0,0.00010958,2]
[333655727,1722310247178,-500.0,0.00010958,2]
[333655728,1722310247187,-220.6359425,0.00010958,2]
[333655729,1722310247869,-279.3640575,0.00010958,2]
[333655730,1722310247879,-500.0,0.00010958,2]
[333655731,1722310247889,-112.57745178,0.00010958,2]
[333655734,1722310404616,500.0,0.00026999,120]
[333655735,1722310446329,800.0,0.00026986,120]
[333655736,1722310506463,800.0,0.00026986,120]
[333655737,1722310566354,800.0,0.00026986,120]
[333655738,1722310626428,800.0,0.00026986,120]
[333655739,1722310686106,800.0,0.00026986,120]
[333655740,1722310749262,800.0,0.00026986,120]
[333655741,1722310805433,800.0,0.00026986,120]
[333655747,1722310926529,800.0,0.00026986,120]
[333655751,1722310984097,800.0,0.00026986,120]
[333655752,1722311344666,800.0,0.00026986,120]
[333655777,1722311432191,-150.0,8.192e-05,2]
[333655778,1722311432201,-783.0,8.199e-05,2]
[333655779,1722311432213,-150.0,8.199e-05,2]
[333655780,1722311432225,-627.47018711,8.199e-05,2]
[333655781,1722311432236,-300.0,8.199e-05,2]
[333655782,1722311432246,-200.04481737,8.2e-05,2]
[333655783,1722311432256,-155.03473347,8.2e-05,2]
[333655784,1722311432266,-199.64472785,8.2e-05,2]
[333655785,1722311432276,-152.03434874,8.2e-05,2]
[333655786,1722311432286,-158.03540572,8.2e-05,2]
[333655787,1722311432297,-301.38427191,8.2e-05,2]
[333655789,1722311432308,-200.04481738,8.2e-05,2]
[333655791,1722311432318,-199.84497163,8.2e-05,2]
[333655793,1722311432327,-198.04436933,8.2e-05,2]
[333655795,1722311432339,-160.03585391,8.2e-05,2]
[333655796,1722311432348,-179.04011168,8.2e-05,2]
[333655797,1722311432359,-160.03585457,8.2e-05,2]
[333655798,1722311432368,-150.03361304,8.2e-05,2]
[333655799,1722311432380,-152.03406123,8.2e-05,2]
[333655800,1722311432389,-300.06722609,8.2e-05,2]
[333655801,1722311432399,-155.03473355,8.2e-05,2]
[333655802,1722311432410,-200.04481737,8.2e-05,2]
[333655803,1722311432420,-150.03361304,8.2e-05,2]
[333655804,1722311432430,-163.03652627,8.2e-05,2]
[333655805,1722311432439,-160.03642971,8.2e-05,2]
[333655806,1722311432448,-154.83468928,8.2e-05,2]
[333655807,1722311432457,-200.0,8.2e-05,2]
[333655808,1722311432466,-151.03383713,8.2e-05,2]
[333655809,1722311432476,-158.77897295,8.2e-05,2]
[333655810,1722311432487,-160.03599171,8.2e-05,2]
[333655811,1722311432497,-877.55,8.219e-05,2]
[333655812,1722311432508,-200.0,8.219e-05,2]
[333655813,1722311432518,-200.0,8.219e-05,2]
[333655814,1722311432527,-255.0,9.019e-05,2]
[333655815,1722311432536,-420.0,9.019e-05,2]
[333655816,1722311432547,-200.0,9.309e-05,2]
[333655817,1722311432557,-250.0,9.333e-05,2]
[333655818,1722311432566,-6972.43,9.339e-05,2]
[333655819,1722311432575,-752.33,9.393e-05,2]
[333655820,1722311432585,-193.02,9.489e-05,2]
[333655821,1722311432595,-800.0,9.542e-05,2]
[333655822,1722311432604,-400.0,9.589e-05,2]
[333655823,1722311432614,-400.0,9.589e-05,2]
[333655824,1722311432623,-303.71,9.67e-05,2]
[333655825,1722311432635,-270.82770935,9.888e-05,2]
[333655826,1722311432645,-600.0,9.9e-05,3]
[333655827,1722311432654,-423.0,9.921e-05,2]
[333655828,1722311432664,-169.29804852,0.0001,2]
[333655829,1722311432675,-1300.0,0.0001,3]
[333655830,1722311432684,-91000.0,0.0001,2]
[333655831,1722311432695,-1900.0,0.000101,3]
[333655832,1722311432705,-2600.0,0.000102,3]
[333655833,1722311432714,-3200.0,0.000103,3]
[333655834,1722311432724,-2785.08994505,0.00010399,2]
[333655835,1722311432733,-600.0,0.000104,3]
[333655836,1722311432743,-877.55,0.00010454,2]
[333655837,1722311432752,-200.0,0.00010472,2]
[333655838,1722311432762,-600.0,0.000105,3]
[333655839,1722311432772,-600.0,0.000106,3]
[333655840,1722311432781,-600.0,0.000107,3]
[333655841,1722311432791,-800.0,0.00010735,2]
[333655842,1722311432801,-14011.1742,0.00010735,2]
[333655843,1722311432810,-305.4426,0.00010735,2]
[333655844,1722311432819,-2500.0,0.00010799,2]
[333655845,1722311432829,-1177.0,0.000108,3]
[333655846,1722311432838,-412.3787,0.00010858,2]
[333655847,1722311432847,-206.1664,0.00010899,2]
[333655848,1722311432856,-2004.8643,0.00010899,2]
[333655849,1722311432866,-24065.0347698,0.00010899,2]
[333655850,1722311432875,-24065.03476971,0.00010899,2]
[333655851,1722311432884,-24065.03476971,0.00010899,2]
[333655852,1722311432895,-24065.03476971,0.00010899,2]
[333655853,1722311432904,-24065.03476971,0.00010899,2]
[333655854,1722311432915,-24065.03476971,0.00010899,2]
[333655855,1722311432924,-24065.03476971,0.00010899,2]
[333655856,1722311432934,-24065.03476971,0.00010899,2]
[333655857,1722311432943,-24065.03476971,0.00010899,2]
[333655858,1722311432952,-21924.27487094,0.00010899,2]
[333655859,1722311432961,-21924.27487087,0.00010899,2]
[333655860,1722311432970,-21924.27487087,0.00010899,2]
[333655861,1722311432979,-21924.27487087,0.00010899,2]
[333655862,1722311432989,-21924.27487087,0.00010899,2]
[333655863,1722311432998,-21924.27487087,0.00010899,2]
[333655864,1722311433008,-21924.27487087,0.00010899,2]
[333655865,1722311433020,-21924.27487087,0.00010899,2]
[333655866,1722311433030,-13464.08195338,0.00010899,2]
[333655867,1722311433047,-8460.19291749,0.00010899,2]
[333655868,1722311433057,-400.766782,0.000109,2]
[333655869,1722311433066,-168.8587113,0.000109,2]
[333655870,1722311433075,-24065.03476971,0.000109,2]
[333655871,1722311433085,-21924.27487087,0.000109,2]
[333655872,1722311433096,-1000.0,0.000109,2]
[333655873,1722311433106,-282.438,0.00010924,2]
[333655874,1722311433116,-476.48543055,0.00010958,2]
[333655875,1722311433126,-500.0,0.00010958,2]
[333655876,1722311433135,-500.0,0.00010958,2]
[333655877,1722311433146,-500.0,0.00010958,2]
[333655878,1722311433365,-232.7898729,0.00010958,2]
[333655879,1722311433375,-500.0,0.00010958,2]
[333655880,1722311433384,-500.0,0.00010958,2]
[333655881,1722311433393,-324.42534452,0.00010958,2]
[333655882,1722311433403,-500.0,0.00010958,2]
[333655883,1722311433413,-500.0,0.00010958,2]
[333655884,1722311433423,-500.0,0.00010958,2]
[333655885,1722311433432,-500.0,0.00010958,2]
[333655886,1722311433441,-500.0,0.00010958,2]
[333655887,1722311433451,-500.0,0.00010958,2]
[333655888,1722311433460,-507.94342562,0.00010958,2]
[333655889,1722311433470,-504.47013443,0.00010958,2]
[333655890,1722311433480,-420.41195749,0.00010958,2]
[333655891,1722311433489,-500.0,0.00010958,2]
[333655892,1722311433499,-500.0,0.00010958,2]
[333655893,1722311433508,-500.0,0.00010958,2]
[333655894,1722311433517,-504.74373691,0.00010958,2]
[333655895,1722311433527,-507.26753114,0.00010958,2]
[333655896,1722311433536,-500.0,0.00010958,2]
[333655897,1722311433546,-500.0,0.00010958,2]
[333655898,1722311433556,-528.78059427,0.00010958,2]
[333655899,1722311433566,-500.0,0.00010958,2]
[333655900,1722311433575,-532.98498092,0.00010958,2]
[333655901,1722311433585,-500.0,0.00010958,2]
[333655902,1722311433595,-513.98629195,0.00010958,2]
[333655903,1722311433604,-500.0,0.00010958,2]
[333655904,1722311433614,-500.0,0.00010958,2]
[333655905,1722311433624,-262.67183049,0.00010958,2]
[333655906,1722311433634,-500.0,0.00010958,2]
[333655907,1722311433643,-210.57922129,0.00010958,2]
[333655908,1722311433653,-500.0,0.00010958,2]
[333655909,1722311433662,-615.40486126,0.00010958,2]
[333655910,1722311433672,-641.97766067,0.00010958,2]
[333655911,1722311433681,-500.0,0.00010958,2]
[333655912,1722311433692,-500.0,0.00010958,2]
[333655913,1722311433702,-557.0289128,0.00010958,2]
[333655914,1722311433712,-626.12206481,0.00010958,2]
[333655915,1722311433721,-450.11608869,0.00010958,2]
[333655916,1722311433731,-500.0,0.00010958,2]
[333655917,1722311433741,-500.0,0.00010958,2]
[333655918,1722311433750,-500.0,0.00010958,2]
[333655919,1722311433759,-514.77017472,0.00010958,2]
[333655920,1722311433769,-500.0,0.00010958,2]
[333655921,1722311433779,-583.0728211,0.00010958,2]
[333655922,1722311433789,-500.0,0.00010958,2]
[333655923,1722311433798,-524.95974343,0.00010958,2]
[333655924,1722311433808,-500.0,0.00010958,2]
[333655925,1722311433817,-378.01860715,0.00010958,2]
[333655926,1722311433827,-450.0,0.00010958,2]
[333655927,1722311433836,-197.28195228,0.00010958,2]
[333655929,1722311438197,-302.71804772,0.00010958,2]
[333655930,1722311438207,-582.15642194,0.00010958,2]
[333655931,1722311438216,-117.31750885,0.00010958,2]
[333655932,1722311438227,-382.68249115,0.00010958,2]
[333655933,1722311438237,-500.0,0.00010958,2]
[333655934,1722311438246,-500.0,0.00010958,2]
[333655935,1722311438256,-500.0,0.00010958,2]
[333655936,1722311438265,-500.0,0.00010958,2]
[333655937,1722311438275,-500.0,0.00010958,2]
[333655938,1722311438284,-471.03632989,0.00010958,2]
[333655939,1722311438293,-500.0,0.00010958,2]
[333655940,1722311438303,-500.0,0.00010958,2]
[333655941,1722311438312,-249.36308381,0.00010958,2]
[333655942,1722311438324,-255.24732431,0.00010958,2]
[333655943,1722311438334,-500.0,0.00010958,2]
[333655944,1722311438343,-500.0,0.00010958,2]
[333655945,1722311438352,-500.0,0.00010958,2]
[333655946,1722311438362,-500.0,0.00010958,2]
[333655947,1722311438372,-500.0,0.00010958,2]
[333655948,1722311438381,-500.0,0.00010958,2]
[333655949,1722311438391,-500.0,0.00010958,2]
[333655950,1722311438401,-596.16918151,0.00010958,2]
[333655951,1722311438410,-500.0,0.00010958,2]
[333655952,1722311438420,-500.0,0.00010958,2]
[333655953,1722311438434,-500.0,0.00010958,2]
[333655954,1722311438444,-500.0,0.00010958,2]
[333655955,1722311438453,-500.0,0.00010958,2]
[333655956,1722311438464,-573.86221308,0.00010958,2]
[333655957,1722311438473,-635.39408113,0.00010958,2]
[333655958,1722311438483,-500.0,0.00010958,2]
[333655959,1722311438492,-521.35701098,0.00010958,2]
[333655960,1722311438502,-500.0,0.00010958,2]
[333655961,1722311438511,-500.0,0.00010958,2]
[333655962,1722311438520,-567.30744965,0.00010958,2]
[333655963,1722311438530,-594.66064751,0.00010958,2]
[333655964,1722311438539,-500.0,0.00010958,2]
[333655965,1722311438549,-500.0,0.00010958,2]
[333655966,1722311438559,-500.0,0.00010958,2]
[333655967,1722311438568,-590.81327308,0.00010958,2]
[333655968,1722311438577,-460.03793976,0.00010958,2]
[333655969,1722311438587,-500.0,0.00010958,2]
[333655970,1722311438596,-551.00288421,0.00010958,2]
[333655971,1722311438605,-624.95360641,0.00010958,2]
[333655972,1722311438615,-500.0,0.00010958,2]
[333655973,1722311438624,-500.0,0.00010958,2]
[333655974,1722311438633,-500.0,0.00010958,2]
[333655975,1722311438643,-500.0,0.00010958,2]
[333655976,1722311438653,-500.0,0.00010958,2]
[333655977,1722311438662,-521.56332457,0.00010958,2]
[333655978,1722311438672,-265.77599883,0.00010958,2]
[333655979,1722311438683,-500.0,0.00010958,2]
[333655980,1722311438692,-500.0,0.00010958,2]
[333655981,1722311438701,-315.0905188,0.00010958,2]
[333655982,1722311438711,-463.92826216,0.00010958,2]
[333655983,1722311438720,-500.0,0.00010958,2]
[333655985,1722311438729,-500.0,0.00010958,2]
[333655987,1722311438738,-528.07273375,0.00010958,2]
[333655989,1722311438748,-500.0,0.00010958,2]
[333655991,1722311438757,-615.12419335,0.00010958,2]
[333655993,1722311438767,-507.24913845,0.00010958,2]
[333655995,1722311438776,-500.0,0.00010958,2]
[333655997,1722311438785,-525.03160933,0.00010958,2]
[333655999,1722311438795,-204.93986778,0.00010958,2]
[333656001,1722311438804,-500.0,0.00010958,2]
[333656002,1722311438813,-579.73568308,0.00010958,2]
[333656004,1722311438823,-505.18056686,0.00010958,2]
[333656006,1722311438832,-500.0,0.00010958,2]
[333656008,1722311438842,-500.0,0.00010958,2]
[333656010,1722311438851,-618.9541524,0.00010958,2]
[333656012,1722311438861,-500.0,0.00010958,2]
[333656014,1722311438871,-498.71308317,0.00010958,2]
[333656015,1722311438880,-500.0,0.00010958,2]
[333656016,1722311438890,-500.0,0.00010958,2]
[333656017,1722311438899,-511.0777125,0.00010958,2]
[333656018,1722311438908,-628.61589762,0.00010958,2]
[333656019,1722311438918,-500.0,0.00010958,2]
[333656020,1722311438927,-506.91934652,0.00010958,2]
[333656021,1722311438937,-500.0,0.00010958,2]
[333656022,1722311438947,-256.072309,0.00010958,2]
[333656023,1722311438956,-500.0,0.00010958,2]
[333656024,1722311438966,-504.28039392,0.00010958,2]
[333656025,1722311438975,-500.0,0.00010958,2]
[333656026,1722311438984,-233.73655219,0.00010958,2]
[333656027,1722311438993,-500.0,0.00010958,2]
[333656028,1722311439002,-253.42712202,0.00010958,2]
[333656029,1722311439011,-500.0,0.00010958,2]
[333656030,1722311439020,-507.28548094,0.00010958,2]
[333656031,1722311439033,-500.0,0.00010958,2]
[333656032,1722311439043,-500.0,0.00010958,2]
[333656033,1722311439053,-507.07244329,0.00010958,2]
[333656034,1722311439063,-500.0,0.00010958,2]
[333656035,1722311439075,-500.0,0.00010958,2]
[333656036,1722311439085,-500.0,0.00010958,2]
[333656037,1722311439095,-605.27,0.00010958,2]
[333656038,1722311439106,-500.0,0.00010958,2]
[333656039,1722311439116,-636.83592714,0.00010958,2]
[333656040,1722311439126,-500.0,0.00010958,2]
[333656041,1722311439136,-500.0,0.00010958,2]
[333656042,1722311439146,-500.0,0.00010958,2]
[333656043,1722311439155,-500.0,0.00010958,2]
[333656044,1722311439164,-500.15700218,0.00010958,2]
[333656045,1722311439174,-559.13277726,0.00010958,2]
[333656046,1722311439187,-500.0,0.00010958,2]
[333656047,1722311439198,-514.88197148,0.00010958,2]
[333656048,1722311439208,-500.0,0.00010958,2]
[333656049,1722311439217,-500.0,0.00010958,2]
[333656050,1722311439227,-517.40528071,0.00010958,2]
[333656051,1722311439236,-517.15798051,0.00010958,2]
[333656052,1722311439246,-500.0,0.00010958,2]
[333656053,1722311439255,-522.16790321,0.00010958,2]
[333656054,1722311439264,-500.0,0.00010958,2]
[333656055,1722311439274,-631.64500012,0.00010958,2]
[333656056,1722311439283,-511.59556557,0.00010958,2]
[333656057,1722311439293,-500.0,0.00010958,2]
[333656058,1722311439303,-500.0,0.00010958,2]
[333656059,1722311439313,-500.0,0.00010958,2]
[333656060,1722311439323,-500.0,0.00010958,2]
[333656061,1722311439332,-500.0,0.00010958,2]
[333656062,1722311439342,-500.0,0.00010958,2]
[333656063,1722311439352,-506.2932849,0.00010958,2]
[333656064,1722311439362,-500.0,0.00010958,2]
[333656065,1722311439376,-500.0,0.00010958,2]
[333656066,1722311439389,-596.20396842,0.00010958,2]
[333656067,1722311439401,-500.0,0.00010958,2]
[333656068,1722311439413,-500.0,0.00010958,2]
[333656069,1722311439425,-204.74692624,0.00010958,2]
[333656070,1722311439439,-577.40754096,0.00010958,2]
[333656071,1722311439449,-500.0,0.00010958,2]
[333656072,1722311439461,-500.0,0.00010958,2]
[333656073,1722311439473,-500.0,0.00010958,2]
[333656074,1722311439484,-500.0,0.00010958,2]
[333656075,1722311439496,-500.0,0.00010958,2]
[333656076,1722311439507,-500.0,0.00010958,2]
[333656077,1722311439519,-510.61688681,0.00010958,2]
[333656078,1722311439531,-500.0,0.00010958,2]
[333656079,1722311439543,-589.91017966,0.00010958,2]
[333656080,1722311439554,-500.0,0.00010958,2]
[333656081,1722311439566,-500.0,0.00010958,2]
[333656082,1722311439579,-500.0,0.00010958,2]
[333656083,1722311439591,-500.0,0.00010958,2]
[333656084,1722311439603,-500.0,0.00010958,2]
[333656085,1722311439614,-500.0,0.00010958,2]
[333656086,1722311439625,-500.0,0.00010958,2]
[333656087,1722311439637,-500.0,0.00010958,2]
[333656088,1722311439648,-500.0,0.00010958,2]
[333656089,1722311439659,-504.23809185,0.00010958,2]
[333656090,1722311439671,-178.81811715,0.00010958,2]
[333656091,1722311439685,-504.78565086,0.00010958,2]
[333656092,1722311439696,-500.0,0.00010958,2]
[333656093,1722311439707,-500.0,0.00010958,2]
[333656094,1722311439719,-500.0,0.00010958,2]
[333656095,1722311439730,-500.0,0.00010958,2]
[333656096,1722311439740,-508.15834146,0.00010958,2]
[333656097,1722311439750,-500.0,0.00010958,2]
[333656098,1722311439761,-507.71945055,0.00010958,2]
[333656099,1722311439772,-500.0,0.00010958,2]
[333656100,1722311439783,-500.0,0.00010958,2]
[333656101,1722311439795,-500.0,0.00010958,2]
[333656102,1722311439806,-500.0,0.00010958,2]
[333656103,1722311439818,-500.0,0.00010958,2]
[333656104,1722311439830,-500.0,0.00010958,2]
[333656105,1722311439841,-500.0,0.00010958,2]
[333656106,1722311439852,-500.0,0.00010958,2]
[333656107,1722311439864,-500.0,0.00010958,2]
[333656108,1722311439877,-231.75504229,0.00010958,2]
[333656109,1722311439889,-500.0,0.00010958,2]
[333656110,1722311439900,-500.0,0.00010958,2]
[333656111,1722311439910,-500.0,0.00010958,2]
[333656112,1722311439920,-500.0,0.00010958,2]
[333656113,1722311439931,-288.88643615,0.00010958,2]
[333656114,1722311439940,-500.0,0.00010958,2]
[333656115,1722311439950,-500.0,0.00010958,2]
[333656116,1722311439962,-500.0,0.00010958,2]
[333656117,1722311439974,-500.0,0.00010958,2]
[333656118,1722311439987,-500.0,0.00010958,2]
[333656119,1722311439999,-500.0,0.00010958,2]
[333656120,1722311440011,-500.0,0.00010958,2]
[333656121,1722311440025,-500.0,0.00010958,2]
[333656122,1722311440036,-418.15099426,0.00010958,2]
[333656123,1722311440048,-500.0,0.00010958,2]
[333656124,1722311440059,-500.0,0.00010958,2]
[333656125,1722311440072,-500.0,0.00010958,2]
[333656126,1722311440084,-511.87626497,0.00010958,2]
[333656127,1722311440097,-505.54024344,0.00010958,2]
[333656128,1722311440109,-505.57407595,0.00010958,2]
[333656129,1722311440121,-481.03539026,0.00010958,2]
[333656130,1722311440132,-500.0,0.00010958,2]
[333656131,1722311440142,-500.0,0.00010958,2]
[333656132,1722311440154,-500.0,0.00010958,2]
[333656133,1722311440164,-191.62556302,0.00010958,2]
[333656134,1722311440176,-312.36683133,0.00010958,2]
[333656135,1722311440188,-502.54895982,0.00010958,2]
[333656136,1722311440199,-500.0,0.00010958,2]
[333656137,1722311440209,-500.0,0.00010958,2]
[333656138,1722311440220,-500.0,0.00010958,2]
[333656139,1722311440232,-506.31831745,0.00010958,2]
[333656140,1722311440242,-500.0,0.00010958,2]
[333656141,1722311440253,-339.05104257,0.00010958,2]
[333656142,1722311440265,-500.0,0.00010958,2]
[333656143,1722311440276,-500.0,0.00010958,2]
[333656144,1722311440286,-500.0,0.00010958,2]
[333656145,1722311440297,-500.0,0.00010958,2]
[333656146,1722311440308,-500.0,0.00010958,2]
[333656147,1722311440320,-500.0,0.00010958,2]
[333656148,1722311440330,-500.0,0.00010958,2]
[333656149,1722311440342,-500.0,0.00010958,2]
[333656150,1722311440353,-594.50309082,0.00010958,2]
[333656151,1722311440363,-500.0,0.00010958,2]
[333656152,1722311440374,-500.0,0.00010958,2]
[333656153,1722311440384,-500.0,0.00010958,2]
[333656154,1722311440395,-312.25360162,0.00010958,2]
[333656155,1722311440406,-504.44259724,0.00010958,2]
[333656156,1722311440416,-500.0,0.00010958,2]
[333656157,1722311440427,-500.0,0.00010958,2]
[333656158,1722311440439,-505.45793736,0.00010958,2]
[333656159,1722311440449,-500.0,0.00010958,2]
[333656160,1722311440460,-500.0,0.00010958,2]
[333656161,1722311440471,-500.0,0.00010958,2]
[333656162,1722311440481,-515.20549885,0.00010958,2]
[333656163,1722311440495,-500.0,0.00010958,2]
[333656164,1722311440506,-500.0,0.00010958,2]
[333656165,1722311440516,-500.0,0.00010958,2]
[333656166,1722311440527,-500.0,0.00010958,2]
[333656167,1722311440539,-551.44062255,0.00010958,2]
[333656168,1722311440550,-509.14129936,0.00010958,2]
[333656169,1722311440561,-623.34093081,0.00010958,2]
[333656170,1722311440571,-500.0,0.00010958,2]
[333656171,1722311440582,-459.60486738,0.00010958,2]
[333656172,1722311440592,-522.83160931,0.00010958,2]
[333656173,1722311440603,-507.32025949,0.00010958,2]